fUST/lending_fUST_20250206
["ID","MTS","AMOUNT","RATE_DAILY","PERIOD"]
[351923996,1738846246364,-795.39,0.00014246,2]
[351923998,1738846246374,-500.0,0.00014246,2]
[351924000,1738846246383,-151.0,0.00014246,2]
[351924002,1738846246393,-500.0,0.00014246,2]
[351924004,1738846246402,-889.35,0.00014246,2]
[351924006,1738846246411,-500.0,0.00014246,2]
[351924008,1738846246421,-648.24,0.00014246,2]
[351924010,1738846246431,-752.64,0.00014246,2]
[351924012,1738846246441,-500.0,0.00014246,2]
[351924014,1738846246450,-500.0,0.00014246,2]
[351924016,1738846246459,-151.0,0.00014246,2]
[351924018,1738846246468,-500.0,0.00014246,2]
[351924020,1738846246478,-198.9265571,0.00014246,2]
[351924022,1738846246487,-500.0,0.00014246,2]
[351924024,1738846246497,-500.0,0.00014246,2]
[351924026,1738846246506,-500.0,0.00014246,2]
[351924028,1738846246515,-500.0,0.00014246,2]
[351924030,1738846246525,-1652.33,0.00014246,2]
[351924031,1738846246534,-1064.01,0.00014246,2]
[351924034,1738846246543,-1582.08,0.00014246,2]
[351924036,1738846246554,-151.0,0.00014246,2]
[351924038,1738846246566,-151.0,0.00014246,2]
[351924040,1738846246576,-601.19,0.00014246,2]
[351924042,1738846246585,-151.0,0.00014246,2]
[351924044,1738846246594,-277.473508,0.00014246,2]
[351924045,1738846246604,-774.03,0.00014246,2]
[351924048,1738846246614,-500.0,0.00014246,2]
[351924049,1738846246623,-724.34,0.00014246,2]
[351924052,1738846246634,-500.0,0.00014246,2]
[351924054,1738846246643,-1335.36,0.00014246,2]
[351924056,1738846246653,-500.0,0.00014246,2]
[351924058,1738846246662,-1157.62,0.00014246,2]
[351924060,1738846246672,-266.410977,0.00014246,2]
[351924062,1738846246681,-266.410977,0.00014246,2]
[351924064,1738846246691,-151.0,0.00014246,2]
[351924066,1738846246700,-151.0,0.00014246,2]
[351924068,1738846246709,-500.0,0.00014246,2]
[351924070,1738846246718,-151.0,0.00014246,2]
[351924071,1738846246727,-500.0,0.00014246,2]
[351924074,1738846246737,-500.0,0.00014246,2]
[351924076,1738846246747,-1115.31,0.00014246,2]
[351924078,1738846246756,-767.75,0.00014246,2]
[351924080,1738846246766,-1406.44,0.00014246,2]
[351924082,1738846246775,-3352.71,0.00014246,2]
[351924083,1738846246784,-658.64,0.00014246,2]
[351924086,1738846246794,-500.0,0.00014246,2]
[351924087,1738846246803,-7608.9,0.00014246,2]
[351924090,1738846246812,-13844.15,0.00014246,2]
[351924091,1738846246822,-500.0,0.00014246,2]
[351924093,1738846246831,-1047.98,0.00014246,2]
[351924094,1738846246840,-1961.93,0.00014246,2]
[351924095,1738846246849,-900.96,0.00014246,2]
[351924096,1738846246858,-1179.15,0.00014246,2]
[351924097,1738846246867,-1337.62,0.00014246,2]
[351924098,1738846246876,-594.11,0.00014246,2]
[351924099,1738846246885,-1092.55,0.00014246,2]
[351924100,1738846246894,-4301.89,0.00014246,2]
[351924101,1738846246903,-500.0,0.00014246,2]
[351924102,1738846246912,-500.0,0.00014246,2]
[351924103,1738846246921,-500.0,0.00014246,2]
[351924104,1738846246930,-5457.4,0.00014246,2]
[351924106,1738846246940,-171.845572,0.00014246,2]
[351924108,1738846246949,-34805.61024403,0.00014246,2]
[351924128,1738846247139,-692.3,0.00013835,2]
[351924130,1738846247149,-692.3,0.00013972,2]
[351924132,1738846247159,-692.3,0.00014109,2]
[351924134,1738846247169,-7183.32975597,0.00014246,2]
[351924136,1738846247178,-171.845572,0.00014246,2]
[351924138,1738846247188,-2286.09,0.00014246,2]
[351924140,1738846247198,-500.0,0.00014246,2]
[351924142,1738846247208,-500.0,0.00014246,2]
[351924144,1738846247217,-2061.62,0.00014246,2]
[351924146,1738846247226,-151.0,0.00014246,2]
[351924148,1738846247236,-1368.27,0.00014246,2]
[351924150,1738846247247,-2454.91,0.00014246,2]
[351924152,1738846247257,-500.0,0.00014246,2]
[351924154,1738846247267,-151.0,0.00014246,2]
[351924156,1738846247276,-500.0,0.00014246,2]
[351924158,1738846247285,-948.46,0.00014246,2]
[351924160,1738846247295,-1574.82,0.00014246,2]
[351924162,1738846247304,-151.0,0.00014246,2]
[351924164,1738846247314,-500.0,0.00014246,2]
[351924166,1738846247324,-151.0,0.00014246,2]
[351924168,1738846247333,-8820.72654698,0.00014246,2]
[351924200,1738846247657,-250.400004,0.000136,2]
[351927228,1738847007597,500.0,0.00019,120]
[351927229,1738847059183,1000.0,0.00019,120]
[351927230,1738847136117,-250.0,0.00012507,2]
[351927231,1738847136139,-926.76771905,0.000126,2]
[351927232,1738847136162,-300.0,0.00012651,2]
[351927233,1738847136186,-1778.99105039,0.00012652,2]
[351927234,1738847158103,-913.8337987,0.00012652,2]
[351927235,1738847191761,800.0,0.00019,120]
[351927236,1738847230127,-898.0,0.000124,2]
[351927237,1738847230150,-275.0147757,0.00012541,2]
[351927238,1738847230172,-300.0,0.00012651,2]
[351927239,1738847230194,-6251.45705851,0.00012652,2]
[351927240,1738847231219,-1638.81654469,0.00012652,2]
[351927241,1738847241109,-1073.50525044,0.00012652,2]
[351927242,1738847243121,-1083.38669744,0.00012652,2]
[351927243,1738847244097,-1085.63795316,0.00012652,2]
[351927244,1738847251141,-1730.11129865,0.00012652,2]
[351927245,1738847254090,-751.80825106,0.00012652,2]
[351927246,1738847345122,-675.416,0.00012525,2]
[351927247,1738847361128,-29.00604817,0.00012525,2]
[351927248,1738847361151,-8409.01935183,0.00012652,2]
[351927314,1738847436234,-339.6297755,0.00012502,2]
[351927315,1738847436244,-183.43274513,0.00012652,2]
[351927316,1738847436254,-300.0,0.00012699,2]
[351927317,1738847436263,-2105.0,0.000127,2]
[351927318,1738847436273,-2102.0,0.000127,2]
[351927319,1738847436283,-2102.0,0.000127,2]
[351927320,1738847436294,-2102.0,0.000127,2]
[351927321,1738847436302,-10979.0,0.00013,2]
[351927322,1738847436309,-1370.89162829,0.00013145,2]
[351927323,1738847436328,-6067.80590449,0.00013145,2]
[351927324,1738847436336,-800.0,0.0001315,2]
[351927325,1738847436345,-210.35545999,0.00013542,2]
[351927326,1738847436353,-1000.0,0.0001358,2]
[351927327,1738847436360,-537.40417109,0.00013597,2]
[351927328,1738847436366,-211.70900227,0.00013598,2]
[351927329,1738847436373,-1000.0,0.000136,2]
[351927330,1738847436381,-1000.0,0.00013672,4]
[351927331,1738847436388,-1000.0,0.00013672,2]
[351927332,1738847436396,-271.10270288,0.00013673,2]
[351927333,1738847436404,-500.0,0.00013673,2]
[351927334,1738847436412,-152.32558677,0.00013697,2]
[351927335,1738847436420,-500.0,0.00013697,2]
[351927336,1738847436427,-500.0,0.00013697,2]
[351927337,1738847436434,-296.24966174,0.00013697,2]
[351927338,1738847436442,-500.0,0.00013697,2]
[351927339,1738847436452,-333.35860385,0.00013697,2]
[351927340,1738847436461,-500.0,0.00013697,2]
[351927341,1738847436474,-500.0,0.00013697,2]
[351927342,1738847436483,-500.0,0.00013697,2]
[351927343,1738847436493,-500.0,0.00013698,2]
[351927344,1738847436502,-902.16,0.00013698,2]
[351927345,1738847436512,-517.53111765,0.00013698,2]
[351927346,1738847436522,-500.0,0.00013698,2]
[351927347,1738847436531,-500.0,0.00013698,2]
[351927348,1738847436541,-500.0,0.00013698,2]
[351927349,1738847436550,-500.0,0.00013698,2]
[351927350,1738847436560,-500.0,0.00013698,2]
[351927351,1738847436569,-500.0,0.00013698,2]
[351927352,1738847436580,-500.0,0.00013698,2]
[351927353,1738847436589,-500.0,0.00013698,2]
[351927354,1738847436599,-500.0,0.00013698,2]
[351927355,1738847436608,-466.95747303,0.00013698,2]
[351927356,1738847436617,-500.0,0.00013698,2]
[351927357,1738847436627,-500.0,0.00013698,2]
[351927358,1738847436636,-500.0,0.00013698,2]
[351927359,1738847436645,-500.0,0.00013698,2]
[351927360,1738847436655,-500.0,0.00013698,2]
[351927361,1738847436664,-500.0,0.00013698,2]
[351927362,1738847436674,-500.0,0.00013698,2]
[351927363,1738847436684,-500.0,0.00013698,2]
[351927364,1738847436693,-686.83,0.00013698,2]
[351927365,1738847436702,-500.0,0.00013698,2]
[351927366,1738847436711,-500.0,0.00013698,2]
[351927367,1738847436723,-500.0,0.00013698,2]
[351927368,1738847436732,-500.0,0.00013698,2]
[351927369,1738847436741,-500.0,0.00013698,2]
[351927370,1738847436752,-508.1595289,0.00013698,2]
[351927371,1738847436761,-500.0,0.00013698,2]
[351927372,1738847436771,-500.0,0.00013698,2]
[351927373,1738847436782,-500.0,0.00013698,2]
[351927374,1738847436794,-500.0,0.00013698,2]
[351927375,1738847436805,-500.0,0.00013698,2]
[351927376,1738847436814,-500.0,0.00013698,2]
[351927377,1738847436824,-302.83583283,0.00013698,2]
[351927378,1738847436833,-500.0,0.00013698,2]
[351927379,1738847436842,-607.6328422,0.00013698,2]
[351927380,1738847436852,-501.54869697,0.00013698,2]
[351927381,1738847436861,-500.0,0.00013698,2]
[351927382,1738847436871,-500.0,0.00013698,2]
[351927383,1738847436880,-500.0,0.00013698,2]
[351927384,1738847436890,-500.0,0.00013698,2]
[351927385,1738847436899,-500.0,0.00013698,2]
[351927386,1738847436911,-500.0,0.00013698,2]
[351927387,1738847436921,-830.24,0.00013698,2]
[351927388,1738847436931,-500.0,0.00013698,2]
[351927389,1738847436940,-500.0,0.00013698,2]
[351927390,1738847436949,-500.0,0.00013698,2]
[351927391,1738847436958,-500.0,0.00013698,2]
[351927392,1738847436967,-500.0,0.00013698,2]
[351927393,1738847436977,-188.0,0.00013698,2]
[351927394,1738847436986,-460.53401954,0.00013698,2]
[351927395,1738847436996,-500.0,0.00013698,2]
[351927396,1738847437006,-500.0,0.00013698,2]
[351927397,1738847437015,-500.0,0.00013698,2]
[351927398,1738847437024,-500.0,0.00013698,2]
[351927399,1738847437034,-503.49486909,0.00013698,2]
[351927400,1738847437043,-203.19450892,0.00013698,2]
[351927401,1738847437053,-500.0,0.00013698,2]
[351927402,1738847437063,-500.0,0.00013698,2]
[351927403,1738847437072,-500.0,0.00013698,2]
[351927404,1738847437082,-500.0,0.00013698,2]
[351927405,1738847437091,-500.0,0.00013698,2]
[351927406,1738847437100,-500.0,0.00013698,2]
[351927407,1738847437111,-500.0,0.00013698,2]
[351927408,1738847437120,-500.0,0.00013698,2]
[351927409,1738847437130,-500.0,0.00013698,2]
[351927410,1738847437139,-663.22,0.00013698,2]
[351927411,1738847437149,-500.0,0.00013698,2]
[351927412,1738847437159,-500.0,0.00013698,2]
[351927413,1738847437168,-500.0,0.00013698,2]
[351927414,1738847437178,-500.0,0.00013698,2]
[351927415,1738847437188,-500.0,0.00013698,2]
[351927416,1738847437198,-500.0,0.00013698,2]
[351927417,1738847437207,-899.58,0.00013698,2]
[351927418,1738847437218,-500.0,0.00013698,2]
[351927419,1738847437227,-500.0,0.00013698,2]
[351927420,1738847437237,-424.86869562,0.00013698,2]
[351927421,1738847437247,-500.0,0.00013698,2]
[351927422,1738847437257,-500.0,0.00013698,2]
[351927423,1738847437267,-842.24,0.00013698,2]
[351927424,1738847437276,-500.0,0.00013698,2]
[351927425,1738847437285,-500.0,0.00013698,2]
[351927426,1738847437295,-500.0,0.00013698,2]
[351927427,1738847437304,-500.0,0.00013698,2]
[351927428,1738847437314,-500.0,0.00013698,2]
[351927429,1738847437324,-94.99317013,0.00013698,2]
[351927442,1738847438488,-405.00682987,0.00013698,2]
[351927443,1738847438501,-556.94651755,0.00013698,2]
[351927444,1738847438514,-500.0,0.00013698,2]
[351927446,1738847438527,-500.0,0.00013698,2]
[351927448,1738847438540,-500.0,0.00013698,2]
[351927449,1738847438553,-500.0,0.00013698,2]
[351927450,1738847438567,-500.0,0.00013698,2]
[351927451,1738847438580,-500.0,0.00013698,2]
[351927453,1738847438592,-500.0,0.00013698,2]
[351927455,1738847438604,-508.17400798,0.00013698,2]
[351927457,1738847438616,-157.36397208,0.00013698,2]
[351927459,1738847438627,-500.0,0.00013698,2]
[351927461,1738847438639,-500.0,0.00013698,2]
[351927462,1738847438652,-500.0,0.00013698,2]
[351927463,1738847438665,-500.0,0.00013698,2]
[351927464,1738847438676,-500.0,0.00013698,2]
[351927465,1738847438688,-500.0,0.00013698,2]
[351927466,1738847438698,-500.0,0.00013698,2]
[351927467,1738847438708,-500.0,0.00013698,2]
[351927468,1738847438721,-502.54,0.00013698,2]
[351927469,1738847438732,-321.88725021,0.00013698,2]
[351927470,1738847438744,-500.0,0.00013698,2]
[351927471,1738847438757,-500.0,0.00013698,2]
[351927472,1738847438768,-790.78,0.00013698,2]
[351927473,1738847438781,-502.08279943,0.00013698,2]
[351927474,1738847438793,-500.0,0.00013698,2]
[351927475,1738847438805,-500.0,0.00013698,2]
[351927476,1738847438817,-500.0,0.00013698,2]
[351927477,1738847438830,-500.0,0.00013698,2]
[351927478,1738847438842,-500.0,0.00013698,2]
[351927479,1738847438854,-500.0,0.00013698,2]
[351927480,1738847438864,-500.0,0.00013698,2]
[351927481,1738847438874,-500.0,0.00013698,2]
[351927482,1738847438884,-500.0,0.00013698,2]
[351927483,1738847438899,-500.0,0.00013698,2]
[351927484,1738847438910,-500.0,0.00013698,2]
[351927485,1738847438922,-500.0,0.00013698,2]
[351927486,1738847438936,-500.0,0.00013698,2]
[351927487,1738847438948,-500.0,0.00013698,2]
[351927488,1738847438960,-500.0,0.00013698,2]
[351927489,1738847438972,-500.0,0.00013698,2]
[351927490,1738847438983,-500.0,0.00013698,2]
[351927491,1738847438994,-500.0,0.00013698,2]
[351927492,1738847439007,-500.0,0.00013698,2]
[351927493,1738847439018,-500.0,0.00013698,2]
[351927494,1738847439029,-500.0,0.00013698,2]
[351927495,1738847439040,-500.0,0.00013698,2]
[351927496,1738847439050,-500.0,0.00013698,2]
[351927497,1738847439061,-500.0,0.00013698,2]
[351927498,1738847439071,-500.27986296,0.00013698,2]
[351927499,1738847439082,-561.47,0.00013698,2]
[351927500,1738847439093,-541.13220611,0.00013698,2]
[351927501,1738847439106,-500.0,0.00013698,2]
[351927502,1738847439117,-500.0,0.00013698,2]
[351927503,1738847439128,-500.0,0.00013698,2]
[351927504,1738847439138,-500.0,0.00013698,2]
[351927505,1738847439157,-1663.17,0.00013698,2]
[351927506,1738847439179,-500.0,0.00013698,2]
[351927507,1738847439203,-500.0,0.00013698,2]
[351927508,1738847439225,-500.0,0.00013698,2]
[351927509,1738847439248,-500.0,0.00013698,2]
[351927510,1738847439270,-500.0,0.00013698,2]
[351927511,1738847439291,-500.0,0.00013698,2]
[351927512,1738847439312,-500.0,0.00013698,2]
[351927513,1738847439333,-500.89349764,0.00013698,2]
[351927514,1738847439356,-500.0,0.00013698,2]
[351927515,1738847439379,-500.0,0.00013698,2]
[351927516,1738847439402,-500.0,0.00013698,2]
[351927517,1738847439424,-500.0,0.00013698,2]
[351927518,1738847439445,-500.0,0.00013698,2]
[351927519,1738847439455,-500.0,0.00013698,2]
[351927520,1738847439465,-500.0,0.00013698,2]
[351927521,1738847439475,-1779.31,0.00013698,2]
[351927522,1738847439487,-500.0,0.00013698,2]
[351927523,1738847439498,-500.0,0.00013698,2]
[351927524,1738847439508,-500.0,0.00013698,2]
[351927525,1738847439519,-500.0,0.00013698,2]
[351927526,1738847439530,-500.0,0.00013698,2]
[351927527,1738847439541,-1188.13,0.00013698,2]
[351927528,1738847439552,-500.0,0.00013698,2]
[351927529,1738847439563,-500.0,0.00013698,2]
[351927530,1738847439574,-500.0,0.00013698,2]
[351927531,1738847439585,-500.0,0.00013698,2]
[351927532,1738847439596,-500.0,0.00013698,2]
[351927533,1738847439607,-500.0,0.00013698,2]
[351927534,1738847439617,-500.0,0.00013698,2]
[351927535,1738847439628,-500.0,0.00013698,2]
[351927536,1738847439636,-500.0,0.00013698,2]
[351927537,1738847439644,-500.81490185,0.00013698,2]
[351927538,1738847439652,-500.0,0.00013698,2]
[351927539,1738847439660,-500.57867955,0.00013698,2]
[351927540,1738847439669,-500.0,0.00013698,2]
[351927541,1738847439677,-500.0,0.00013698,2]
[351927542,1738847439686,-500.0,0.00013698,2]
[351927543,1738847439694,-500.0,0.00013698,2]
[351927544,1738847439702,-500.0,0.00013698,2]
[351927545,1738847439710,-500.0,0.00013698,2]
[351927546,1738847439720,-500.0,0.00013698,2]
[351927547,1738847439728,-500.0,0.00013698,2]
[351927548,1738847439736,-500.0,0.00013698,2]
[351927549,1738847439745,-500.0,0.00013698,2]
[351927550,1738847439754,-500.0,0.00013698,2]
[351927551,1738847439762,-500.0,0.00013698,2]
[351927552,1738847439771,-500.0,0.00013698,2]
[351927553,1738847439779,-500.0,0.00013698,2]
[351927554,1738847439788,-500.0,0.00013698,2]
[351927555,1738847439796,-502.58504685,0.00013698,2]
[351927556,1738847439807,-515.22791306,0.00013698,2]
[351927557,1738847439816,-360.59082124,0.00013698,2]
[351927558,1738847439824,-500.0,0.00013698,2]
[351927559,1738847439832,-500.0,0.00013698,2]
[351927560,1738847439840,-500.0,0.00013698,2]
[351927561,1738847439849,-500.0,0.00013698,2]
[351927562,1738847439858,-500.0,0.00013698,2]
[351927563,1738847439866,-505.91623262,0.00013698,2]
[351927564,1738847439874,-500.0,0.00013698,2]
[351927565,1738847439882,-500.0,0.00013698,2]
[351927566,1738847439891,-500.9944304,0.00013698,2]
[351927567,1738847439898,-500.0,0.00013698,2]
[351927568,1738847439912,-500.0,0.00013698,2]
[351927569,1738847439921,-209.709451,0.00013698,2]
[351927570,1738847439930,-500.0,0.00013698,2]
[351927571,1738847439939,-201.92633535,0.00013698,2]
[351927572,1738847439947,-500.0,0.00013698,2]
[351927573,1738847439959,-541.53868586,0.00013698,2]
[351927574,1738847439972,-500.22167013,0.00013698,2]
[351927575,1738847439988,-500.0,0.00013698,2]
[351927576,1738847440001,-500.0,0.00013698,2]
[351927577,1738847440013,-500.0,0.00013698,2]
[351927578,1738847440024,-500.0,0.00013698,2]
[351927579,1738847440035,-500.0,0.00013698,2]
[351927580,1738847440045,-500.0,0.00013698,2]
[351927582,1738847440056,-500.0,0.00013698,2]
[351927583,1738847440067,-382.041907,0.00013698,2]
[351927584,1738847440078,-641.27,0.00013698,2]
[351927585,1738847440089,-500.0,0.00013698,2]
[351927586,1738847440100,-500.0,0.00013698,2]
[351927587,1738847440111,-500.0,0.00013698,2]
[351927588,1738847440121,-500.0,0.00013698,2]
[351927589,1738847440132,-500.07064162,0.00013698,2]
[351927590,1738847440142,-500.0,0.00013698,2]
[351927591,1738847440153,-558.10898564,0.00013698,2]
[351927592,1738847440164,-500.0,0.00013698,2]
[351927593,1738847440174,-500.0,0.00013698,2]
[351927594,1738847440185,-500.0,0.00013698,2]
[351927595,1738847440196,-500.0,0.00013698,2]
[351927596,1738847440207,-500.0,0.00013698,2]
[351927598,1738847440218,-500.0,0.00013698,2]
[351927600,1738847440228,-501.38986885,0.00013698,2]
[351927602,1738847440239,-500.0,0.00013698,2]
[351927604,1738847440250,-500.0,0.00013698,2]
[351927606,1738847440260,-500.0,0.00013698,2]
[351927607,1738847440269,-500.0,0.00013698,2]
[351927609,1738847440279,-500.0,0.00013698,2]
[351927610,1738847440288,-506.13247617,0.00013698,2]
[351927611,1738847440297,-500.0,0.00013698,2]
[351927612,1738847440307,-500.0,0.00013698,2]
[351927613,1738847440317,-502.44808444,0.00013698,2]
[351927614,1738847440326,-500.0,0.00013698,2]
[351927615,1738847440335,-500.0,0.00013698,2]
[351927641,1738847440577,-500.0,0.00013698,2]
[351927644,1738847440597,-1424.39,0.00013698,2]
[351927646,1738847440611,-500.0,0.00013698,2]
[351927648,1738847440621,-500.0,0.00013698,2]
[351927650,1738847440631,-500.0,0.00013698,2]
[351927652,1738847440641,-500.0,0.00013698,2]
[351927654,1738847440650,-500.0,0.00013698,2]
[351927656,1738847440660,-500.0,0.00013698,2]
[351927658,1738847440669,-500.0,0.00013698,2]
[351927660,1738847440679,-500.0,0.00013698,2]
[351927662,1738847440687,-500.0,0.00013698,2]
[351927664,1738847440696,-1234.8,0.00013698,2]
[351927666,1738847440705,-500.0,0.00013698,2]
[351927668,1738847440715,-500.0,0.00013698,2]
[351927670,1738847440727,-500.0,0.00013698,2]
[351927672,1738847440736,-500.0,0.00013698,2]
[351927674,1738847440746,-388.58976229,0.00013698,2]
[351927676,1738847440756,-500.0,0.00013698,2]
[351927678,1738847440767,-500.0,0.00013698,2]
[351927680,1738847440776,-500.0,0.00013698,2]
[351927682,1738847440786,-500.0,0.00013698,2]
[351927684,1738847440796,-500.0,0.00013698,2]
[351927686,1738847440806,-500.0,0.00013698,2]
[351927688,1738847440815,-772.63,0.00013698,2]
[351927690,1738847440824,-500.0,0.00013698,2]
[351927692,1738847440833,-387.40076996,0.00013698,2]
[351927694,1738847440842,-500.89598415,0.00013698,2]
[351927696,1738847440852,-500.0,0.00013698,2]
[351927698,1738847440861,-500.0,0.00013698,2]
[351927700,1738847440872,-500.0,0.00013698,2]
[351927702,1738847440881,-1541.31,0.00013698,2]
[351927704,1738847440895,-500.0,0.00013698,2]
[351927706,1738847440904,-500.0,0.00013698,2]
[351927708,1738847440914,-500.0,0.00013698,2]
[351927710,1738847440924,-778.65,0.00013698,2]
[351927712,1738847440934,-500.0,0.00013698,2]
[351927714,1738847440943,-218.94206705,0.00013698,2]
[351927716,1738847440953,-500.0,0.00013698,2]
[351927718,1738847440963,-965.76,0.00013698,2]
[351927720,1738847440973,-530.97,0.00013698,2]
[351927722,1738847440984,-500.0,0.00013698,2]
[351927724,1738847440993,-1806.99,0.00013698,2]
[351927726,1738847441003,-500.0,0.00013698,2]
[351927728,1738847441012,-513.11074289,0.00013698,2]
[351927730,1738847441022,-500.0,0.00013698,2]
[351927732,1738847441032,-211.83795287,0.00013698,2]
[351927734,1738847441042,-500.0,0.00013698,2]
[351927736,1738847441051,-500.0,0.00013698,2]
[351927738,1738847441061,-504.0293553,0.00013698,2]
[351927740,1738847441071,-500.0,0.00013698,2]
[351927742,1738847441081,-500.0,0.00013698,2]
[351927744,1738847441090,-932.19,0.00013698,2]
[351927746,1738847441100,-512.00962202,0.00013698,2]
[351927748,1738847441110,-505.14936998,0.00013698,2]
[351927750,1738847441119,-500.0,0.00013698,2]
[351927752,1738847441129,-817.86,0.00013698,2]
[351927754,1738847441139,-500.0,0.00013698,2]
[351927756,1738847441149,-500.0,0.00013698,2]
[351927759,1738847441162,-765.11,0.00013698,2]
[351927761,1738847441172,-697.84,0.00013698,2]
[351927763,1738847441182,-500.0,0.00013698,2]
[351927765,1738847441191,-4103.99,0.00013698,2]
[351927767,1738847441201,-500.0,0.00013698,2]
[351927769,1738847441211,-500.0,0.00013698,2]
[351927771,1738847441221,-500.0,0.00013698,2]
[351927773,1738847441230,-500.0,0.00013698,2]
[351927775,1738847441240,-500.0,0.00013698,2]
[351927777,1738847441250,-500.0,0.00013698,2]
[351927779,1738847441260,-620.59,0.00013698,2]
[351927781,1738847441270,-2092.73,0.00013698,2]
[351927783,1738847441279,-500.0,0.00013698,2]
[351927785,1738847441288,-500.0,0.00013698,2]
[351927787,1738847441298,-500.0,0.00013698,2]
[351927789,1738847441308,-500.31940804,0.00013698,2]
[351927791,1738847441317,-500.0,0.00013698,2]
[351927793,1738847441327,-500.0,0.00013698,2]
[351927795,1738847441336,-501.31913381,0.00013698,2]
[351927797,1738847441346,-500.0,0.00013698,2]
[351927799,1738847441356,-500.0,0.00013698,2]
[351927801,1738847441365,-500.0,0.00013698,2]
[351927803,1738847441375,-500.0,0.00013698,2]
[351927805,1738847441384,-500.0,0.00013698,2]
[351927807,1738847441394,-500.0,0.00013698,2]
[351927809,1738847441403,-1097.83,0.00013698,2]
[351927811,1738847441413,-500.0,0.00013698,2]
[351927813,1738847441422,-500.0,0.00013698,2]
[351927815,1738847441432,-500.0,0.00013698,2]
[351927817,1738847441441,-500.0,0.00013698,2]
[351927819,1738847441451,-1248.19,0.00013698,2]
[351927821,1738847441462,-500.0,0.00013698,2]
[351927823,1738847441472,-629.48,0.00013698,2]
[351927825,1738847441482,-1427.22,0.00013698,2]
[351927827,1738847441491,-753.82,0.00013698,2]
[351927829,1738847441502,-15115.34,0.00013698,2]
[351927831,1738847441512,-500.0,0.00013698,2]
[351927833,1738847441521,-384.31256995,0.00013698,2]
[351927835,1738847441531,-500.0,0.00013698,2]
[351927837,1738847441540,-500.0,0.00013698,2]
[351927839,1738847441550,-3380.09,0.00013698,2]
[351927841,1738847441559,-500.0,0.00013698,2]
[351927843,1738847441568,-500.0,0.00013698,2]
[351927845,1738847441579,-1329.82,0.00013698,2]
[351927847,1738847441589,-500.0,0.00013698,2]
[351927849,1738847441598,-500.0,0.00013698,2]
[351927851,1738847441608,-500.0,0.00013698,2]
[351927854,1738847441617,-500.0,0.00013698,2]
[351927856,1738847441627,-7819.04,0.00013698,2]
[351927857,1738847441636,-500.0,0.00013698,2]
[351927860,1738847441645,-1129.74,0.00013698,2]
[351927862,1738847441655,-1948.42,0.00013698,2]
[351927864,1738847441665,-500.0,0.00013698,2]
[351927865,1738847441674,-1948.42,0.00013698,2]
[351927867,1738847441683,-1948.42,0.00013698,2]
[351927870,1738847441693,-1948.42,0.00013698,2]
[351927871,1738847441703,-1948.42,0.00013698,2]
[351927874,1738847441712,-1948.42,0.00013698,2]
[351927876,1738847441723,-500.0,0.00013698,2]
[351927878,1738847441732,-1948.42,0.00013698,2]